lending/lending_fUSD_20250121
["ID","MTS","AMOUNT","RATE_DAILY","PERIOD"]
[349828469,1737453083114,-500.0,0.00021369,2]
[349828470,1737453083124,-1252.0,0.00021369,2]
[349828471,1737453083133,-2167.31,0.00021369,2]
[349828472,1737453083142,-500.0,0.00021369,2]
[349828473,1737453083151,-500.0,0.00021369,2]
[349828474,1737453083160,-687.19,0.00021369,2]
[349828475,1737453083170,-1932.68,0.00021369,2]
[349828476,1737453083316,-500.0,0.00021369,2]
[349828477,1737453083327,-620.48,0.00021369,2]
[349828478,1737453083337,-500.0,0.00021369,2]
[349828479,1737453083347,-537.04,0.00021397,2]
[349828480,1737453083357,-4064.75,0.00021411,7]
[349828481,1737453083367,-4064.75,0.00021411,7]
[349828482,1737453083377,-4064.75,0.00021411,7]
[349828483,1737453083388,-4064.75,0.00021411,7]
[349828484,1737453083398,-405.71652636,0.0002142,2]
[349828485,1737453083407,-1152.0,0.00021432,2]
[349828486,1737453083417,-150.0,0.00021434,2]
[349828487,1737453083427,-437.71,0.00021434,2]
[349828488,1737453083437,-150.0,0.00021434,2]
[349828489,1737453083447,-150.0,0.00021434,2]
[349828490,1737453083458,-150.0,0.00021473,2]
[349828491,1737453083469,-198.92480562,0.00021475,2]
[349828492,1737453083478,-37706.63317993,0.00021478,2]
[349828493,1737453083488,-12829.19937418,0.00021498,2]
[349828494,1737453083499,-2110.0,0.000215,2]
[349828495,1737453083508,-150.0,0.00021532,2]
[349828496,1737453083518,-537.04,0.00021534,2]
[349828497,1737453083528,-623.72,0.00021542,2]
[349828498,1737453083538,-591.79,0.00021542,2]
[349828499,1737453083547,-898.45,0.00021542,2]
[349828500,1737453083557,-1154.75,0.00021542,2]
[349828501,1737453083567,-500.0,0.00021542,2]
[349828502,1737453083577,-1000.0,0.00021542,2]
[349828503,1737453083587,-1093.7,0.00021542,2]
[349828504,1737453083597,-545.47,0.00021542,2]
[349828505,1737453083607,-500.0,0.00021542,2]
[349828506,1737453083617,-1476.07,0.00021542,2]
[349828507,1737453083627,-200.35494415,0.00021543,2]
[349828508,1737453083637,-150.0,0.00021544,2]
[349828509,1737453083646,-1982.3335999,0.0002156,2]
[349828510,1737453083656,-150.0,0.00021569,2]
[349828511,1737453083666,-150.0,0.00021577,2]
[349828512,1737453083676,-3000.0,0.000216,2]
[349828513,1737453083686,-1000.0,0.000216,2]
[349828514,1737453083695,-157234.78092859,0.0002161,2]
[349828515,1737453083705,-41926.10780955,0.0002161,2]
[349828516,1737453083715,-450.0,0.00021616,2]
[349828517,1737453083725,-150.0,0.00021631,2]
[349828518,1737453083735,-1000.0,0.00021633,2]
[349828519,1737453083744,-1956649.32190334,0.00021643,2]
[349828520,1737453084059,-95234.18491838,0.00021643,2]
[349828521,1737453084071,-2234.52701424,0.00021643,2]
[349828522,1737453084263,-518.68159334,0.00019178,2]
[349828523,1737453084273,-6179.13462367,0.00021643,2]
[349828524,1737453084317,-3696.938571,0.00021643,2]
[349828525,1737453084327,-2062.84515806,0.00021643,2]
[349828526,1737453084381,-473.48276719,0.00021643,2]
[349828527,1737453084392,-336.49747003,0.00021643,2]
[349828528,1737453084403,-12904.27407682,0.00021643,2]
[349828529,1737453084414,-942.20109134,0.00021643,2]
[349828530,1737453084426,-1539.05,0.00021643,2]
[349828531,1737453084931,-9405.22,0.00018602,2]
[349828532,1737453084942,-500.0,0.00019178,2]
[349828533,1737453084951,-500.0,0.00019178,2]
[349828534,1737453084961,-500.0,0.00019178,2]
[349828535,1737453084970,-500.0,0.00019452,2]
[349828536,1737453084980,-152.0,0.00019452,2]
[349828537,1737453084989,-500.0,0.00019452,2]
[349828538,1737453085001,-500.0,0.00019726,2]
[349828539,1737453085011,-266.882,0.00020982,2]
[349828540,1737453085020,-298.01,0.00021178,2]
[349828541,1737453085029,-50139.27508358,0.00021643,2]
[349828542,1737453085076,-89.76434642,0.00021643,2]
[349828543,1737453085087,-91013.56038985,0.00021643,2]
[349828544,1737453085161,-500.0,0.00019178,2]
[349828545,1737453085171,-500.0,0.00019452,2]
[349828546,1737453085180,-2396.93746054,0.00021643,2]
[349828547,1737453085218,-777.58902269,0.00021643,2]
[349828548,1737453085237,-767.34999604,0.00021643,2]
[349828549,1737453085296,-555.72,0.00019178,2]
[349828550,1737453085306,-127142.30194974,0.00021643,2]
[349828551,1737453085317,-198662.12193988,0.00021643,2]
[349828552,1737453085328,-269.17959,0.00021643,2]
[349828553,1737453085339,-511.8,0.00021643,2]
[349828554,1737453820988,283.31,0.00010137,2]
[349828569,1737454232285,-201.37,0.00012329,2]
[349828570,1737454232296,-550.0,0.00015,2]
[349828571,1737454232307,-6404.60072644,0.00015451,2]
[349828572,1737454232319,-353.94412062,0.00015451,2]
[349828573,1737454232397,-650.75124806,0.00015451,2]
[349828574,1737454232410,-518.94,0.00015451,2]
[349828575,1737454232423,-375.839991,0.00015451,2]
[349828576,1737454232436,-1190.87951664,0.00015451,2]
[349828577,1737454232449,-1022.1,0.00015451,2]
[349828578,1737454232462,-2405.1,0.00015451,2]
[349828579,1737454232474,-2981.72353132,0.00015451,2]
[349828580,1737454232486,-1370.68264793,0.00015451,2]
[349828581,1737454232499,-3608.71867118,0.00015451,2]
[349828582,1737454232512,-6220.71954681,0.00015451,2]
[349828583,1737454232522,-201.37,0.00016096,2]
[349828584,1737454232533,-201.05641381,0.00016145,2]
[349828585,1737454232543,-166.75,0.00016245,2]
[349828586,1737454232554,-1009.8,0.0001666,2]
[349828587,1737454232565,-194.17,0.00016712,2]
[349828588,1737454232576,-283.31,0.00016813,2]
[349828589,1737454232586,-600.0,0.00017,2]
[349828590,1737454232597,-802.5,0.00017288,2]
[349828591,1737454232607,-200.0,0.00017307,2]
[349828592,1737454232616,-1835.13,0.00017324,2]
[349828593,1737454232626,-1070.28,0.00017404,2]
[349828594,1737454232635,-1000.0,0.00017481,2]
[349828595,1737454232644,-5558.0,0.000175,5]
[349828596,1737454232654,-761.41185311,0.00017685,2]
[349828597,1737454232663,-550.0,0.00017785,2]
[349828617,1737454232673,-36724.25,0.00017786,2]
[349828619,1737454232985,-480.75027081,0.000179,2]
[349828620,1737454233003,-250.0,0.00017919,2]
[349828621,1737454233013,-957.07,0.00017979,2]
[349828622,1737454233023,-619.98695463,0.00018,2]
[349828623,1737454233047,-482.65467788,0.00018,2]
[349828624,1737454233056,-480.7502708,0.00018038,2]
[349828625,1737454233066,-23900.0,0.00018155,2]
[349828627,1737454233075,-480.7502708,0.00018176,2]
[349828628,1737454233087,-677.87,0.00018206,2]
[349828630,1737454233100,-480.7502708,0.00018314,2]
[349828631,1737454233109,-2747.04,0.0001832,2]
[349828632,1737454233119,-60713.02059354,0.00018356,2]
[349828633,1737454233133,-370.64434035,0.00018356,2]
[349828634,1737454233149,-2774.74251539,0.00018356,2]
[349828635,1737454233162,-271.5,0.00018356,2]
[349828637,1737454238266,-296.4409,0.000149,2]
[349828638,1737454238327,-282.55999991,0.000149,2]
[349828639,1737454238426,-470.4286776,0.000149,2]
[349828640,1737454238436,-1469.05825989,0.0001666,2]
[349828641,1737454238448,-7052.26981172,0.0001666,2]
[349828642,1737454238457,-8405.25255072,0.00018356,2]
[349828643,1737454238467,-480.7502708,0.00018452,2]
[349828644,1737454238477,-761.41185309,0.00018528,2]
[349828645,1737454238486,-160.852,0.00018578,2]
[349828646,1737454238496,-1440.238,0.00018578,2]
[349828647,1737454238505,-480.7502708,0.0001859,2]
[349828648,1737454238515,-1837.0,0.000187,2]
[349828649,1737454238524,-480.7502708,0.00018728,2]
[349828650,1737454238533,-274.90166486,0.00018866,2]
[349828651,1737454238545,-205.84860594,0.00018866,2]
[349828652,1737454238555,-87.36898101,0.0001887,2]
[349828653,1737454238567,-499.63101899,0.0001887,2]
[349828654,1737454238576,-286.22,0.00018875,2]
[349828655,1737454238586,-677.87,0.0001888,2]
[349828656,1737454238595,-500.0,0.0001889,2]
[349828657,1737454238607,-4234.04008084,0.00018909,2]
[349828658,1737454238623,-8460.34991916,0.00018909,2]
[349828659,1737454238633,-1009.8,0.00018924,2]
[349828660,1737454238643,-480.7502708,0.00019003,2]
[349828661,1737454238652,-22198.8354465,0.00019078,2]
[349828662,1737454238662,-600.81,0.00019078,30]
[349828663,1737454238671,-480.7502708,0.00019141,2]
[349828664,1737454238681,-500.0,0.00019178,2]
[349828665,1737454238691,-252.80674781,0.00019178,2]
[349828666,1737454238700,-187.22228015,0.00019178,2]
[349828667,1737454238710,-500.0,0.00019178,2]
[349828668,1737454238719,-504.32198758,0.00019178,2]
[349828669,1737454238728,-500.0,0.00019178,2]
[349828670,1737454238737,-500.0,0.00019178,2]
[349828671,1737454238747,-500.0,0.00019178,2]
[349828672,1737454238756,-500.0,0.00019178,2]
[349828673,1737454238766,-500.0,0.00019178,2]
[349828674,1737454238775,-500.0,0.00019178,2]
[349828675,1737454238784,-500.0,0.00019178,2]
[349828676,1737454238793,-500.0,0.00019178,2]
[349828677,1737454238803,-500.0,0.00019178,2]
[349828678,1737454238812,-500.0,0.00019178,2]
[349828679,1737454238821,-300.0,0.00019178,2]
[349828680,1737454238831,-500.0,0.00019178,2]
[349828681,1737454238841,-500.0,0.00019178,2]
[349828682,1737454238852,-500.0,0.00019178,2]
[349828683,1737454238862,-500.0,0.00019178,2]
[349828685,1737454238871,-500.0,0.00019178,2]
[349828687,1737454238880,-500.0,0.00019178,2]
[349828689,1737454238890,-500.0,0.00019178,2]
[349828691,1737454238899,-500.0,0.00019178,2]
[349828693,1737454238909,-500.0,0.00019178,2]
[349828695,1737454238918,-500.0,0.00019178,2]
[349828697,1737454238927,-500.0,0.00019178,2]
[349828699,1737454238937,-500.0,0.00019178,2]
[349828701,1737454238946,-500.0,0.00019178,2]
[349828703,1737454238955,-500.0,0.00019178,2]
[349828705,1737454238964,-717.29,0.00019178,2]
[349828707,1737454238974,-500.0,0.00019178,2]
[349828709,1737454238983,-500.0,0.00019178,2]
[349828711,1737454238992,-500.0,0.00019178,2]
[349828713,1737454239001,-992.7,0.00019178,2]
[349828715,1737454239010,-519.1844596,0.00019178,2]
[349828717,1737454239020,-500.0,0.00019178,2]
[349828719,1737454239029,-500.0,0.00019178,2]
[349828722,1737454239039,-645.49812712,0.00019178,2]
[349828723,1737454239048,-500.0,0.00019178,2]
[349828725,1737454239057,-500.0,0.00019178,2]
[349828727,1737454239067,-500.0,0.00019178,2]
[349828730,1737454239076,-500.0,0.00019178,2]
[349828732,1737454239088,-500.0,0.00019178,2]
[349828734,1737454239099,-500.0,0.00019178,2]
[349828736,1737454239109,-500.0,0.00019178,2]
[349828737,1737454239119,-500.0,0.00019178,2]
[349828738,1737454239130,-500.0,0.00019178,2]
[349828739,1737454239139,-500.0,0.00019178,2]
[349828740,1737454239148,-500.0,0.00019178,2]
[349828741,1737454239159,-500.0,0.00019178,2]
[349828742,1737454239170,-500.0,0.00019178,2]
[349828743,1737454239179,-500.0,0.00019178,2]
[349828744,1737454239188,-500.0,0.00019178,2]
[349828745,1737454239197,-500.0,0.00019178,2]
[349828746,1737454239207,-500.0,0.00019178,2]
[349828747,1737454239216,-500.0,0.00019178,2]
[349828748,1737454239226,-500.0,0.00019178,2]
[349828749,1737454239235,-500.0,0.00019178,2]
[349828750,1737454239243,-500.0,0.00019178,2]
[349828751,1737454239253,-500.0,0.00019178,2]
[349828752,1737454239262,-500.0,0.00019178,2]
[349828753,1737454239271,-500.0,0.00019178,2]
[349828754,1737454239280,-500.0,0.00019178,2]
[349828755,1737454239289,-500.0,0.00019178,2]
[349828756,1737454239299,-500.0,0.00019178,2]
[349828757,1737454239308,-500.0,0.00019178,2]
[349828758,1737454239317,-500.0,0.00019178,2]
[349828759,1737454239326,-500.0,0.00019178,2]
[349828760,1737454239335,-500.0,0.00019178,2]
[349828761,1737454239344,-500.0,0.00019178,2]
[349828762,1737454239355,-500.0,0.00019178,2]
[349828763,1737454239364,-188.79745901,0.00019178,2]
[349828764,1737454239373,-173.07,0.00019187,2]
[349828765,1737454239382,-637.2,0.00019251,2]
[349828766,1737454239391,-150.0,0.00019253,2]
[349828767,1737454239400,-313.16134627,0.00019271,2]
[349828768,1737454239409,-480.7502708,0.00019279,2]
[349828769,1737454239418,-965.93,0.0001935,2]
[349828770,1737454239428,-663.48,0.0001935,2]
[349828771,1737454239437,-500.0,0.0001935,2]
[349828772,1737454239446,-500.0,0.0001935,2]
[349828773,1737454239455,-966.35,0.0001935,2]
[349828774,1737454239464,-1279.46,0.0001935,2]
[349828775,1737454239474,-939.57,0.0001935,2]
[349828776,1737454239483,-1512.95,0.0001935,2]
[349828777,1737454239492,-500.0,0.0001935,2]
[349828778,1737454239501,-1074.91,0.0001935,2]
[349828779,1737454239510,-710.24,0.0001935,2]
[349828780,1737454239520,-500.0,0.0001935,2]
[349828781,1737454239530,-833.97,0.0001935,2]
[349828782,1737454239539,-1256.66,0.0001935,2]
[349828783,1737454239549,-1895.95,0.0001935,2]
[349828784,1737454239558,-702.49,0.0001935,2]
[349828785,1737454239567,-665.98,0.0001935,2]
[349828786,1737454239577,-500.0,0.0001935,2]
[349828787,1737454239586,-1791.51,0.0001935,2]
[349828788,1737454239595,-500.0,0.0001935,2]
[349828789,1737454239608,-500.0,0.0001935,2]
[349828790,1737454239619,-500.0,0.0001935,2]
[349828791,1737454239629,-500.0,0.0001935,2]
[349828792,1737454239639,-500.0,0.0001935,2]
[349828793,1737454239648,-970.65,0.0001935,2]
[349828794,1737454239657,-1591.11,0.0001935,2]
[349828795,1737454239667,-500.0,0.0001935,2]
[349828796,1737454239676,-7720.06009079,0.00019351,2]
[349828797,1737454239685,-761.41185309,0.00019371,2]
[349828798,1737454239695,-500.0,0.00019389,2]
[349828799,1737454239704,-500.0,0.00019389,2]
[349828800,1737454239713,-500.0,0.00019389,2]
[349828801,1737454239723,-500.0,0.00019389,2]
[349828802,1737454239733,-500.0,0.00019389,2]
[349828803,1737454239742,-1444.87,0.0001939,2]
[349828804,1737454239751,-931.98,0.0001939,2]
[349828805,1737454239760,-500.0,0.0001939,2]
[349828806,1737454239770,-1233.88,0.0001939,2]
[349828807,1737454239779,-500.0,0.0001939,2]
[349828808,1737454239788,-557.087348,0.0001939,2]
[349828809,1737454239797,-5777.13,0.0001939,2]
[349828810,1737454239806,-158.602003,0.0001939,2]
[349828811,1737454239816,-500.0,0.0001939,2]
[349828812,1737454239825,-160.687533,0.0001939,2]
[349828813,1737454239835,-807.59,0.0001939,2]
[349828814,1737454239846,-500.0,0.0001939,2]
[349828815,1737454239860,-354.390277,0.0001939,2]
[349828816,1737454239869,-1150.51,0.0001939,2]
[349828817,1737454239879,-527.99,0.0001939,2]
[349828818,1737454239890,-998.51,0.0001939,2]
[349828819,1737454239900,-639.84,0.0001939,2]
[349828820,1737454239909,-808.41,0.0001939,2]
[349828821,1737454239920,-500.0,0.0001939,2]
[349828822,1737454239929,-500.0,0.0001939,2]
[349828823,1737454239939,-1883.4,0.0001939,2]
[349828824,1737454239949,-1189.6,0.0001939,2]
[349828825,1737454239958,-670.62,0.0001939,2]
[349828826,1737454239968,-824.54,0.0001939,2]
[349828827,1737454239985,-1536.37,0.0001939,2]
[349828828,1737454239995,-1914.15,0.0001939,2]
[349828829,1737454240004,-500.0,0.0001939,2]
[349828830,1737454240014,-1038.28,0.0001939,2]
[349828831,1737454240024,-719.19,0.0001939,2]
[349828832,1737454240033,-1814.31,0.0001939,2]
[349828833,1737454240042,-641.4,0.0001939,2]
[349828834,1737454240051,-632.0,0.0001939,2]
[349828835,1737454240061,-507.76,0.0001939,2]
[349828836,1737454240070,-500.0,0.00019391,2]
[349828837,1737454240081,-500.0,0.00019391,2]
[349828838,1737454240092,-500.0,0.00019391,2]
[349828839,1737454240106,-500.0,0.00019391,2]
[349828840,1737454240115,-649.94,0.00019391,2]
[349828841,1737454240125,-500.0,0.00019391,2]
[349828842,1737454240134,-500.0,0.00019391,2]
[349828843,1737454240143,-500.0,0.00019391,2]
[349828844,1737454240153,-500.0,0.00019391,2]
[349828845,1737454240163,-500.0,0.00019391,2]
[349828846,1737454240173,-500.0,0.00019391,2]
[349828847,1737454240183,-500.0,0.00019391,2]
[349828848,1737454240192,-500.0,0.00019391,2]
[349828849,1737454240202,-530.19,0.00019391,2]
[349828850,1737454240211,-500.0,0.00019391,2]
[349828851,1737454240221,-500.0,0.00019391,2]
[349828852,1737454240230,-500.0,0.00019391,2]
[349828853,1737454240239,-500.0,0.00019391,2]
[349828854,1737454240249,-500.0,0.00019391,2]
[349828855,1737454240259,-477.6366143,0.00019391,2]
[349828856,1737454240268,-500.0,0.00019391,2]
[349828857,1737454240278,-500.0,0.00019391,2]
[349828858,1737454240288,-500.0,0.00019391,2]
[349828859,1737454240298,-500.0,0.00019391,2]
[349828860,1737454240308,-500.0,0.00019391,2]
[349828861,1737454240317,-500.0,0.00019391,2]
[349828862,1737454240327,-500.0,0.00019391,2]
[349828863,1737454240337,-500.0,0.00019391,2]
[349828864,1737454240347,-500.0,0.00019391,2]
[349828865,1737454240361,-500.0,0.00019391,2]
[349828866,1737454240371,-500.0,0.00019391,2]
[349828867,1737454240381,-500.0,0.00019391,2]
[349828868,1737454240390,-351.7568559,0.00019391,2]
[349828869,1737454240400,-500.0,0.00019391,2]
[349828870,1737454240409,-500.0,0.00019391,2]
[349828871,1737454240419,-500.0,0.00019391,2]
[349828872,1737454240429,-500.0,0.00019391,2]
[349828873,1737454240439,-500.0,0.00019391,2]
[349828874,1737454240449,-500.0,0.00019391,2]
[349828875,1737454240459,-729.23,0.00019391,2]
[349828876,1737454240468,-500.0,0.00019391,2]
[349828877,1737454240478,-500.0,0.00019391,2]
[349828878,1737454240487,-517.21833028,0.00019391,2]
[349828879,1737454240497,-594.6,0.00019391,2]
[349828880,1737454240506,-500.0,0.00019391,2]
[349828881,1737454240516,-500.0,0.00019391,2]
[349828882,1737454240526,-500.0,0.00019391,2]
[349828883,1737454240535,-500.0,0.00019391,2]
[349828884,1737454240545,-500.0,0.00019391,2]
[349828885,1737454240554,-500.0,0.00019391,2]
[349828886,1737454240563,-500.0,0.00019391,2]
[349828887,1737454240573,-500.0,0.00019391,2]
[349828888,1737454240582,-500.0,0.00019391,2]
[349828889,1737454240592,-500.0,0.00019391,2]
[349828890,1737454240604,-501.89719162,0.00019391,2]
[349828891,1737454240613,-500.0,0.00019391,2]
[349828892,1737454240623,-500.0,0.00019391,2]
[349828893,1737454240633,-500.0,0.00019391,2]
[349828894,1737454240643,-500.0,0.00019391,2]
[349828895,1737454240653,-500.0,0.00019391,2]
[349828896,1737454240662,-500.0,0.00019391,2]
[349828897,1737454240673,-500.0,0.00019391,2]
[349828898,1737454240682,-500.0,0.00019391,2]
[349828899,1737454240692,-500.0,0.00019391,2]
[349828900,1737454240702,-500.0,0.00019391,2]
[349828907,1737454240886,-500.0,0.00019391,2]
[349828910,1737454240896,-500.0,0.00019391,2]
[349828912,1737454240907,-392.14927782,0.00019391,2]
[349828914,1737454240916,-506.55677323,0.00019391,2]
[349828916,1737454240926,-500.0,0.00019391,2]
[349828918,1737454240935,-500.0,0.00019391,2]
[349828919,1737454240945,-502.83468122,0.00019391,2]
[349828921,1737454240955,-500.0,0.00019391,2]
[349828924,1737454240965,-503.24848872,0.00019391,2]
[349828925,1737454240974,-502.20512525,0.00019391,2]
[349828927,1737454240984,-500.0,0.00019391,2]
[349828929,1737454240993,-505.28020279,0.00019391,2]
[349828932,1737454241003,-559.65,0.00019391,2]
[349828934,1737454241013,-500.00000001,0.00019391,2]
[349828936,1737454241022,-500.0,0.00019391,2]
[349828938,1737454241031,-1358.41,0.00019391,2]
[349828940,1737454241041,-503.59872453,0.00019391,2]
[349828941,1737454241051,-500.0,0.00019391,2]
[349828942,1737454241060,-515.52,0.00019391,2]
[349828943,1737454241069,-500.0,0.00019391,2]
[349828944,1737454241079,-500.0,0.00019391,2]
[349828945,1737454241089,-500.0,0.00019391,2]
[349828946,1737454241101,-500.0,0.00019391,2]
[349828947,1737454241110,-500.0,0.00019391,2]
[349828948,1737454241120,-500.0,0.00019391,2]
[349828949,1737454241129,-500.0,0.00019391,2]
[349828950,1737454241140,-500.0,0.00019391,2]
[349828951,1737454241150,-500.0,0.00019391,2]
[349828952,1737454241159,-500.0,0.00019391,2]
[349828953,1737454241171,-674.46,0.00019391,2]
[349828954,1737454241181,-500.0,0.00019391,2]
[349828955,1737454241190,-539.57,0.00019391,2]
[349828956,1737454241200,-500.0,0.00019391,2]
[349828957,1737454241209,-500.0,0.00019391,2]
[349828958,1737454241218,-500.0,0.00019391,2]
[349828959,1737454241228,-590.77,0.00019391,2]
[349828960,1737454241237,-565.33786348,0.00019391,2]
[349828961,1737454241246,-500.0,0.00019391,2]
[349828962,1737454241256,-500.0,0.00019391,2]
[349828963,1737454241265,-284.95554845,0.00019391,2]
[349828964,1737454241275,-500.0,0.00019391,2]
[349828965,1737454241284,-500.0,0.00019391,2]
[349828966,1737454241293,-675.22,0.00019391,2]
[349828967,1737454241302,-500.0,0.00019391,2]
[349828968,1737454241312,-1348.15,0.00019391,2]
[349828970,1737454241322,-500.0,0.00019391,2]
[349828972,1737454241331,-500.0,0.00019391,2]
[349828974,1737454241340,-824.53,0.00019391,2]
[349828976,1737454241352,-500.0,0.00019391,2]
[349828978,1737454241361,-500.0,0.00019391,2]
[349828980,1737454241371,-500.0,0.00019391,2]
[349828982,1737454241380,-1270.57,0.00019391,2]
[349828984,1737454241389,-500.0,0.00019391,2]
[349828985,1737454241398,-500.0,0.00019391,2]
[349828987,1737454241408,-500.0,0.00019391,2]
[349828989,1737454241417,-766.02,0.00019391,2]
[349828992,1737454241426,-1744.71,0.00019391,2]
[349828993,1737454241436,-500.0,0.00019391,2]
[349828995,1737454241445,-500.0,0.00019391,2]
[349828997,1737454241455,-500.0,0.00019391,2]
[349828999,1737454241466,-500.0,0.00019391,2]
[349829002,1737454241476,-1853.93,0.00019391,2]
[349829004,1737454241485,-500.0,0.00019391,2]
[349829006,1737454241495,-532.88543673,0.00019391,2]
[349829008,1737454241504,-500.0,0.00019391,2]
[349829010,1737454241514,-500.0,0.00019391,2]
[349829012,1737454241523,-756.56,0.00019391,2]
[349829014,1737454241532,-500.0,0.00019391,2]
[349829016,1737454241542,-1042.93,0.00019391,2]
[349829018,1737454241551,-500.0,0.00019391,2]
[349829020,1737454241561,-500.0,0.00019391,2]
[349829022,1737454241572,-500.0,0.00019391,2]
[349829024,1737454241581,-500.0,0.00019391,2]
[349829026,1737454241591,-2400.05,0.00019391,2]
[349829028,1737454241603,-501.62,0.00019391,2]
[349829030,1737454241613,-500.0,0.00019391,2]
[349829032,1737454241623,-767.55,0.00019391,2]
[349829034,1737454241632,-500.0,0.00019391,2]
[349829036,1737454241642,-537.71,0.00019391,2]
[349829038,1737454241652,-500.0,0.00019391,2]
[349829040,1737454241661,-248.17398725,0.00019391,2]
[349829042,1737454241671,-500.0,0.00019391,2]
[349829044,1737454241680,-500.0,0.00019391,2]
[349829046,1737454241690,-900.87,0.00019391,2]
[349829048,1737454241699,-500.0,0.00019391,2]
[349829050,1737454241709,-500.0,0.00019391,2]
[349829052,1737454241719,-500.0,0.00019391,2]
[349829054,1737454241728,-500.0,0.00019391,2]
[349829056,1737454241738,-500.0,0.00019391,2]
[349829058,1737454241747,-500.0,0.00019391,2]
[349829060,1737454241756,-500.0,0.00019391,2]
[349829062,1737454241765,-500.0,0.00019391,2]
[349829064,1737454241775,-1228.88,0.00019391,2]
[349829066,1737454241784,-500.0,0.00019391,2]
[349829068,1737454241794,-500.0,0.00019391,2]
[349829070,1737454241803,-500.0,0.00019391,2]
[349829072,1737454241813,-503.73,0.00019391,2]
[349829074,1737454241823,-500.0,0.00019391,2]
[349829076,1737454241833,-500.0,0.00019391,2]
[349829078,1737454241845,-500.0,0.00019391,2]
[349829080,1737454241857,-500.0,0.00019391,2]
[349829082,1737454241868,-1077.74,0.00019391,2]
[349829084,1737454241878,-500.0,0.00019391,2]
[349829086,1737454241889,-500.0,0.00019391,2]
[349829088,1737454241898,-496.2,0.00019391,2]
[349829090,1737454241908,-500.0,0.00019391,2]
[349829092,1737454241918,-500.0,0.00019391,2]
[349829094,1737454241928,-500.0,0.00019391,2]
[349829096,1737454241938,-500.0,0.00019391,2]
[349829098,1737454241947,-500.0,0.00019391,2]
[349829100,1737454241958,-500.0,0.00019391,2]
[349829102,1737454241967,-500.0,0.00019391,2]
[349829104,1737454241977,-500.0,0.00019391,2]
[349829106,1737454241987,-500.0,0.00019391,2]
[349829108,1737454241996,-500.0,0.00019391,2]
[349829110,1737454242006,-500.0,0.00019391,2]
[349829112,1737454242016,-500.0,0.00019391,2]
[349829114,1737454242026,-500.0,0.00019391,2]
[349829116,1737454242036,-500.0,0.00019391,2]
[349829118,1737454242046,-651.09,0.00019391,2]
[349829120,1737454242055,-500.0,0.00019391,2]
[349829122,1737454242065,-500.0,0.00019391,2]
[349829124,1737454242075,-500.0,0.00019391,2]
[349829126,1737454242086,-500.0,0.00019391,2]
[349829128,1737454242102,-500.0,0.00019391,2]
[349829130,1737454242114,-500.0,0.00019391,2]
[349829132,1737454242124,-1171.97,0.00019391,2]
[349829134,1737454242135,-500.0,0.00019391,2]
[349829137,1737454242146,-500.0,0.00019391,2]
[349829139,1737454242155,-500.0,0.00019391,2]
[349829140,1737454242166,-500.0,0.00019391,2]
[349829143,1737454242176,-500.0,0.00019391,2]